Departmental family,Entity,Date Paid,Expense type,Expense Area,Supplier,Transaction Number, Amount , Description ,Supplier Type, Expenditure Type 
UK Statistics Authority,Office for National Statistics,29-Sep-17,Surveys,Data Collection,NISRA,30000579,"95,905.12", Statistical Services,Large, Programme 
UK Statistics Authority,Office for National Statistics,02-Oct-17,Telecommunications,Digital Services & Technology,BT Global Services,51354,"38,381.90", Information Management Services,Large, Programme 
UK Statistics Authority,Office for National Statistics,02-Oct-17,Telecommunications,Digital Services & Technology,BT Global Services,51354,"124,053.46", Information Management Services,Large, Programme 
UK Statistics Authority,Office for National Statistics,02-Oct-17,Travel and Subsistence,"Finance, Audit & Business Development ",Redfern Travel,51357,"57,569.17", Travel and Accommodation Booking Service ,SME, Programme 
UK Statistics Authority,Office for National Statistics,02-Oct-17,"ICT Outsourcing, Maintenance and Support",Digital Services & Technology,Equiniti Limited,51358,"10,546.12", Information Management Services,Large, Programme 
UK Statistics Authority,Office for National Statistics,02-Oct-17,"ICT Outsourcing, Maintenance and Support",Digital Services & Technology,Equiniti Limited,51358,"36,666.68", Information Management Services,Large, Programme 
UK Statistics Authority,Office for National Statistics,02-Oct-17,Software  Licenses at Cost,"Finance, Audit & Business Development ",Phoenix Software Ltd,51359,"120,000.00", Software Licenses,SME, Programme 
UK Statistics Authority,Office for National Statistics,02-Oct-17,GSS Fast Streamer Costs,Business Services & Development,HMRC,51364,"10,427.00", Government Centralised Training and Recruitment Activities ,Large, Programme 
UK Statistics Authority,Office for National Statistics,02-Oct-17,Permanent UK Staff  - Basic Salary,Data Collection,HMRC,51364,79.71, Government Centralised Training and Recruitment Activities ,Large, Programme 
UK Statistics Authority,Office for National Statistics,02-Oct-17,Permanent UK Staff  - Basic Salary,Economic Statistics Transformation,HMRC,51364,"27,974.10", Government Centralised Training and Recruitment Activities ,Large, Programme 
UK Statistics Authority,Office for National Statistics,02-Oct-17,Permanent UK Staff  - Basic Salary,"Methods, Data & Research ",HMRC,51364,"1,196.15", Government Centralised Training and Recruitment Activities ,Large, Programme 
UK Statistics Authority,Office for National Statistics,02-Oct-17,Permanent UK Staff - Employer's Pension Costs,Data Collection,HMRC,51364,16.66, Government Centralised Training and Recruitment Activities ,Large, Programme 
UK Statistics Authority,Office for National Statistics,02-Oct-17,Permanent UK Staff - Employer's Pension Costs,"Methods, Data & Research ",HMRC,51364,264.35, Government Centralised Training and Recruitment Activities ,Large, Programme 
UK Statistics Authority,Office for National Statistics,02-Oct-17,Permanent UK Staff - Employer's Social Security Costs,Data Collection,HMRC,51364,7.97, Government Centralised Training and Recruitment Activities ,Large, Programme 
UK Statistics Authority,Office for National Statistics,02-Oct-17,Permanent UK Staff - Employer's Social Security Costs,"Methods, Data & Research ",HMRC,51364,140.85, Government Centralised Training and Recruitment Activities ,Large, Programme 
UK Statistics Authority,Office for National Statistics,02-Oct-17,Season Ticket Recovery - Transfer to OGD,"Finance, Audit & Business Development ",HMRC,51364,"1,283.99", Government Centralised Training and Recruitment Activities ,Large, Programme 
UK Statistics Authority,Office for National Statistics,02-Oct-17,Surveys,Business Services & Development,HMRC,51364,984, Government Centralised Training and Recruitment Activities ,Large, Programme 
UK Statistics Authority,Office for National Statistics,02-Oct-17,Surveys,Economic Statistics Transformation,HMRC,51364,"1,968.00", Government Centralised Training and Recruitment Activities ,Large, Programme 
UK Statistics Authority,Office for National Statistics,02-Oct-17,Surveys,"Methods, Data & Research ",HMRC,51364,984, Government Centralised Training and Recruitment Activities ,Large, Programme 
UK Statistics Authority,Office for National Statistics,02-Oct-17,Surveys,"Methods, Data & Research ",HMRC,51364,984, Government Centralised Training and Recruitment Activities ,Large, Programme 
UK Statistics Authority,Office for National Statistics,02-Oct-17,Surveys,"Methods, Data & Research ",HMRC,51364,984, Government Centralised Training and Recruitment Activities ,Large, Programme 
UK Statistics Authority,Office for National Statistics,02-Oct-17,Surveys,National Accounts And Economic Statistics,HMRC,51364,984, Government Centralised Training and Recruitment Activities ,Large, Programme 
UK Statistics Authority,Office for National Statistics,02-Oct-17,Surveys,National Accounts And Economic Statistics,HMRC,51364,984, Government Centralised Training and Recruitment Activities ,Large, Programme 
UK Statistics Authority,Office for National Statistics,02-Oct-17,Surveys,National Accounts And Economic Statistics,HMRC,51364,984, Government Centralised Training and Recruitment Activities ,Large, Programme 
UK Statistics Authority,Office for National Statistics,02-Oct-17,Surveys,National Accounts And Economic Statistics,HMRC,51364,"1,968.00", Government Centralised Training and Recruitment Activities ,Large, Programme 
UK Statistics Authority,Office for National Statistics,02-Oct-17,Surveys,National Accounts And Economic Statistics,HMRC,51364,984, Government Centralised Training and Recruitment Activities ,Large, Programme 
UK Statistics Authority,Office for National Statistics,02-Oct-17,Surveys,National Accounts And Economic Statistics,HMRC,51364,984, Government Centralised Training and Recruitment Activities ,Large, Programme 
UK Statistics Authority,Office for National Statistics,02-Oct-17,Surveys,Public Policy Analysis ,HMRC,51364,984, Government Centralised Training and Recruitment Activities ,Large, Programme 
UK Statistics Authority,Office for National Statistics,02-Oct-17,Surveys,Public Policy Analysis ,HMRC,51364,984, Government Centralised Training and Recruitment Activities ,Large, Programme 
UK Statistics Authority,Office for National Statistics,02-Oct-17,Surveys,Data Collection,Ipsos MORI,51365,"159,594.00", Census Information Management Services,Large, Programme 
UK Statistics Authority,Office for National Statistics,02-Oct-17,Consultant Costs,Digital Services & Technology,Parity Resources Limited,51375,"5,125.39", Information Management Services,Large, Programme 
UK Statistics Authority,Office for National Statistics,02-Oct-17,Consultant Costs,Digital Services & Technology,Parity Resources Limited,51375,"8,612.35", Information Management Services,Large, Programme 
UK Statistics Authority,Office for National Statistics,02-Oct-17,Contractor Costs,Business Services & Development,Parity Resources Limited,51375,"12,814.74", Information Management Services,Large, Programme 
UK Statistics Authority,Office for National Statistics,02-Oct-17,Contractor Costs,Census,Parity Resources Limited,51375,"9,610.74", Information Management Services,Large, Programme 
UK Statistics Authority,Office for National Statistics,02-Oct-17,Contractor Costs,Digital Services & Technology,Parity Resources Limited,51375,"5,011.08", Information Management Services,Large, Programme 
UK Statistics Authority,Office for National Statistics,02-Oct-17,Contractor Costs,Economic Statistics Transformation,Parity Resources Limited,51375,"10,251.79", Information Management Services,Large, Programme 
UK Statistics Authority,Office for National Statistics,02-Oct-17,"ICT Outsourcing, Maintenance and Support",Digital Services & Technology,Parity Resources Limited,51375,"15,184.88", Information Management Services,Large, Programme 
UK Statistics Authority,Office for National Statistics,02-Oct-17,Short-Term Contract and Agency Staff Costs,Business Services & Development,Parity Resources Limited,51375,"3,737.62", Information Management Services,Large, Programme 
UK Statistics Authority,Office for National Statistics,02-Oct-17,Short-Term Contract and Agency Staff Costs,Census,Parity Resources Limited,51375,"3,825.50", Information Management Services,Large, Programme 
UK Statistics Authority,Office for National Statistics,02-Oct-17,Surveys,National Accounts And Economic Statistics,Mintel International Group Ltd,51388,"49,608.00", Statistical Services,Large, Programme 
UK Statistics Authority,Office for National Statistics,02-Oct-17,Surveys,Data Collection,NatCen Social Research,51390,"192,811.41", Statistical Services,Large, Programme 
UK Statistics Authority,Office for National Statistics,02-Oct-17,Business Rates,Business Services & Development,City of Westminster,51396,"247,076.00", Drummond Gate Rates,Large, Programme 
UK Statistics Authority,Office for National Statistics,02-Oct-17,Telecommunications,Digital Services & Technology,BT Global Services,51399,"39,361.14", Information Management Services,Large, Programme 
UK Statistics Authority,Office for National Statistics,03-Oct-17,Surveys,National Accounts And Economic Statistics,IFF Research,51631,"63,671.00", Statistical Services,Large, Programme 
UK Statistics Authority,Office for National Statistics,03-Oct-17,"ICT Outsourcing, Maintenance and Support",Digital Services & Technology,Crown Hosting Data Centres Limited,51633,"13,956.89", Information Management Services,SME, Programme 
UK Statistics Authority,Office for National Statistics,03-Oct-17,"ICT Outsourcing, Maintenance and Support",Digital Services & Technology,Crown Hosting Data Centres Limited,51633,"19,092.88", Information Management Services,SME, Programme 
UK Statistics Authority,Office for National Statistics,04-Oct-17,Consultant Costs,"Finance, Audit & Business Development ",Certus Solutions Consulting Services Ltd,52213,"40,777.50", Information Management Services,SME, Programme 
UK Statistics Authority,Office for National Statistics,04-Oct-17,Travel and Subsistence,"Finance, Audit & Business Development ",Redfern Travel,52218,"53,167.67", Travel and Accommodation Booking Service ,SME, Programme 
UK Statistics Authority,Office for National Statistics,04-Oct-17,Travel and Subsistence,"Finance, Audit & Business Development ",Calder World of Travel,52224,"39,733.57", Travel and Accommodation Booking Service ,SME, Programme 
UK Statistics Authority,Office for National Statistics,05-Oct-17,ICT Costs,Digital Services & Technology,Computacenter (UK) Limited,52247,"22,680.00", Information Management Services,Large, Programme 
UK Statistics Authority,Office for National Statistics,05-Oct-17,"ICT Outsourcing, Maintenance and Support",Digital Services & Technology,Computacenter (UK) Limited,52247,"155,623.55", Information Management Services,Large, Programme 
UK Statistics Authority,Office for National Statistics,05-Oct-17,IT (Owned) at Cost - Additions,Digital Services & Technology,Computacenter (UK) Limited,52247,"382,324.38", Information Management Services,Large, Programme 
UK Statistics Authority,Office for National Statistics,05-Oct-17,Software Licences at Cost - Additions,Digital Services & Technology,Computacenter (UK) Limited,52247,"50,904.82", Information Management Services,Large, Programme 
UK Statistics Authority,Office for National Statistics,05-Oct-17,Training and Development,Digital Services & Technology,Computacenter (UK) Limited,52247,"11,100.40", Information Management Services,Large, Programme 
UK Statistics Authority,Office for National Statistics,05-Oct-17,Consultant Costs,Digital Services & Technology,Parity Resources Limited,52248,"2,563.20", Information Management Services,Large, Programme 
UK Statistics Authority,Office for National Statistics,05-Oct-17,Contractor Costs,Business Services & Development,Parity Resources Limited,52248,"14,096.22", Information Management Services,Large, Programme 
UK Statistics Authority,Office for National Statistics,05-Oct-17,Contractor Costs,Business Services & Development,Parity Resources Limited,52248,"7,048.80", Information Management Services,Large, Programme 
UK Statistics Authority,Office for National Statistics,05-Oct-17,Contractor Costs,Census,Parity Resources Limited,52248,"5,446.80", Information Management Services,Large, Programme 
UK Statistics Authority,Office for National Statistics,05-Oct-17,Contractor Costs,Census,Parity Resources Limited,52248,"11,533.27", Information Management Services,Large, Programme 
UK Statistics Authority,Office for National Statistics,05-Oct-17,Contractor Costs,Digital Services & Technology,Parity Resources Limited,52248,"5,011.08", Information Management Services,Large, Programme 
UK Statistics Authority,Office for National Statistics,05-Oct-17,"ICT Outsourcing, Maintenance and Support",Digital Services & Technology,Parity Resources Limited,52248,"7,689.60", Information Management Services,Large, Programme 
UK Statistics Authority,Office for National Statistics,06-Oct-17,Childcare Services,"Finance, Audit & Business Development ",Computershare Voucher Services,52256,"39,632.18", Childcare Vouchers ,Large, Programme 
UK Statistics Authority,Office for National Statistics,06-Oct-17,"ICT Outsourcing, Maintenance and Support",Digital Services & Technology,Automated Intelligence Ltd,52262,"59,400.00", Information Management Services,SME, Programme 
UK Statistics Authority,Office for National Statistics,06-Oct-17,High Street Vouchers,Data Collection,Park Retail Ltd,52264,"56,695.31", Social Surveys Incentive Vouchers,Large, Programme 
UK Statistics Authority,Office for National Statistics,06-Oct-17,Permanent UK Staff - Basic Salary,Public Policy Analysis ,HMRC,52271,"27,974.10", Statistical Services,Large, Programme 
UK Statistics Authority,Office for National Statistics,09-Oct-17,Consultant Costs,Communications,Engine Partners UK Llp,52667,"85,499.68",Census Brand Creation �,Large, Programme 
UK Statistics Authority,Office for National Statistics,09-Oct-17,"ICT Outsourcing, Maintenance and Support",Digital Services & Technology,Equiniti Limited,52670,"10,546.12", Information Management Services,Large, Programme 
UK Statistics Authority,Office for National Statistics,09-Oct-17,"ICT Outsourcing, Maintenance and Support",Digital Services & Technology,Equiniti Limited,52670,"36,666.68", Information Management Services,Large, Programme 
UK Statistics Authority,Office for National Statistics,09-Oct-17,Contractor Costs,Digital Services & Technology,Certes Computing Ltd,52671,"13,227.30", Information Management Services,SME, Programme 
UK Statistics Authority,Office for National Statistics,09-Oct-17,"ICT Outsourcing, Maintenance and Support",Digital Services & Technology,Certes Computing Ltd,52671,"13,802.40", Information Management Services,SME, Programme 
UK Statistics Authority,Office for National Statistics,10-Oct-17,Facilities Management,"Finance, Audit & Business Development ",Vinci Construction UK Limited,52909,"302,937.72", Faciliites Management ,Large, Programme 
UK Statistics Authority,Office for National Statistics,11-Oct-17,Telecommunications,Digital Services & Technology,Vodafone Corporate Ltd,52929,"58,898.36", Information Management Services,Large, Programme 
UK Statistics Authority,Office for National Statistics,11-Oct-17,Travel and Subsistence,"Finance, Audit & Business Development ",Redfern Travel,52935,"54,260.23", Travel and Accommodation Booking Service ,SME, Programme 
UK Statistics Authority,Office for National Statistics,12-Oct-17,Facilities Management,"Finance, Audit & Business Development ",Vinci Construction UK Limited,53417,"303,941.21", Facilities Management Services,Large, Programme 
UK Statistics Authority,Office for National Statistics,13-Oct-17,"ICT Outsourcing, Maintenance and Support",Digital Services & Technology,Mango Solutions,53803,"38,415.00", Information Management Services,SME, Programme 
UK Statistics Authority,Office for National Statistics,13-Oct-17,Telecommunications,Digital Services & Technology,Vodafone Corporate Ltd,53804,"70,645.96", Information Management Services,Large, Programme 
UK Statistics Authority,Office for National Statistics,13-Oct-17,Procurement Card,"Finance, Audit & Business Development ",Royal Bank of Scotland,30000593,"105,741.23", Multiple Procurement Card Purchases ,Large, Programme 
UK Statistics Authority,Office for National Statistics,13-Oct-17,Stationery,"Finance, Audit & Business Development ",Royal Bank of Scotland,30000593,"9,598.12", Multiple Procurement Card Purchases ,Large, Programme 
UK Statistics Authority,Office for National Statistics,17-Oct-17,Contractor Costs,Digital Services & Technology,LA International,54078,"18,983.69", Information Management Services,SME, Programme 
UK Statistics Authority,Office for National Statistics,17-Oct-17,"ICT Outsourcing, Maintenance and Support",Digital Services & Technology,LA International,54078,"9,715.54", Information Management Services,SME, Programme 
UK Statistics Authority,Office for National Statistics,17-Oct-17,Electricity,Business Services & Development,EDF Energy,30000599,"25,396.73", Newport Electricity Charges  ,Large, Programme 
UK Statistics Authority,Office for National Statistics,17-Oct-17,Electricity,Business Services & Development,EDF Energy,30000600,"29,113.64", Drummond Gate Electricity Charges  ,Large, Programme 
UK Statistics Authority,Office for National Statistics,17-Oct-17,Electricity,Business Services & Development,EDF Energy,30000601,"27,757.36", Titchfield Electricity Charges  ,Large, Programme 
UK Statistics Authority,Office for National Statistics,18-Oct-17,Travel and Subsistence,"Finance, Audit & Business Development ",Calder World of Travel,54094,"29,848.16", Travel and Accommodation Booking Service ,SME, Programme 
UK Statistics Authority,Office for National Statistics,19-Oct-17,"ICT Outsourcing, Maintenance and Support","Finance, Audit & Business Development ",Oracle Corporation UK Ltd,54379,"7,335.20", Information Management Services,Large, Programme 
UK Statistics Authority,Office for National Statistics,19-Oct-17,Software Licences at Cost - Additions,"Finance, Audit & Business Development ",Oracle Corporation UK Ltd,54379,"115,135.73", Information Management Services,Large, Programme 
UK Statistics Authority,Office for National Statistics,19-Oct-17,"ICT Outsourcing, Maintenance and Support",Digital Services & Technology,SCC,54387,"62,086.20", Information Management Services,Large, Programme 
UK Statistics Authority,Office for National Statistics,19-Oct-17,Travel and Subsistence,"Finance, Audit & Business Development ",Redfern Travel,54389,"61,515.88", Travel and Accommodation Booking Service ,SME, Programme 
UK Statistics Authority,Office for National Statistics,19-Oct-17,"ICT Outsourcing, Maintenance and Support",Digital Services & Technology,QA Ltd,54395,"60,450.00", Information Management Services,Large, Programme 
UK Statistics Authority,Office for National Statistics,20-Oct-17,Capital Major Works >25k,Business Services & Development,Hawkins Cladding Ltd,54957,"163,087.96", Major Works Newport,SME, Programme 
UK Statistics Authority,Office for National Statistics,23-Oct-17,Surveys,Public Policy Analysis ,TNS UK Ltd,55193,"408,208.80", Statistical Services ,Large, Programme 
UK Statistics Authority,Office for National Statistics,23-Oct-17,Consultant Costs,Census,Deloitte,55196,"96,768.00", Census Information Management ,SME, Programme 
UK Statistics Authority,Office for National Statistics,23-Oct-17,"ICT Outsourcing, Maintenance and Support",Digital Services & Technology,Valtech Ltd,55199,"188,670.00", Information Management Services,Large, Programme 
UK Statistics Authority,Office for National Statistics,24-Oct-17,Contractor Costs,Digital Services & Technology,Medley Business Solutions Ltd,55213,"29,458.55", Information Management Services,Large, Programme 
UK Statistics Authority,Office for National Statistics,25-Oct-17,Mobile Phone Provision,Digital Services & Technology,EE Limited,55549,"337,500.00", Information Management Services,Large, Programme 
UK Statistics Authority,Office for National Statistics,26-Oct-17,Contractor Costs,Business Services & Development,Michael Page International Recruitment Ltd,55566,"35,640.00", Information Management Services,Large, Programme 
UK Statistics Authority,Office for National Statistics,26-Oct-17,Telecommunications,Data Collection,EE Limited,30000609,"26,330.60", Information Management Services,Large, Programme 
UK Statistics Authority,Office for National Statistics,27-Oct-17,"ICT Outsourcing, Maintenance and Support",Digital Services & Technology,Valtech Ltd,56061,"38,121.00", Information Management Services,Large, Programme 
UK Statistics Authority,Office for National Statistics,27-Oct-17,Travel and Subsistence,"Finance, Audit & Business Development ",Redfern Travel,56074,"49,984.60", Travel and Accommodation Booking Service ,SME, Programme 
UK Statistics Authority,Office for National Statistics,31-Oct-17,"ICT Outsourcing, Maintenance and Support",Digital Services & Technology,QA Ltd,30000611,"134,100.00", Information Management Services,Large, Programme 
